[Event "Early-Titled-Tuesday-Blitz-February-27-2024"]
[Site "Chess.com"]
[Date "2024.02.27"]
[Round "7"]
[White "carlocapau"]
[Black "PawnEatingZombie"]
[Result "1-0"]
[WhiteElo "2467"]
[BlackElo "2172"]
[TimeControl "180+1"]
[EndTime "9:16:14 PST"]
[Termination "carlocapau won by checkmate"]

1. d4 {[%clk 0:03:00.9]} 1... Nf6 {[%clk 0:02:54.6]} 2. c4 {[%clk 0:02:59.9]}
2... g6 {[%clk 0:02:54.6]} 3. f3 {[%clk 0:02:59.6]} 3... Bg7 {[%clk 0:02:51]} 4.
e4 {[%clk 0:02:59.4]} 4... d6 {[%clk 0:02:51.1]} 5. Nc3 {[%clk 0:02:59.5]} 5...
Nc6 {[%clk 0:02:51.4]} 6. Nge2 {[%clk 0:02:58.3]} 6... a6 {[%clk 0:02:51.8]} 7.
Be3 {[%clk 0:02:53.4]} 7... Na5 {[%clk 0:02:51]} 8. Ng3 {[%clk 0:02:50.4]} 8...
b5 {[%clk 0:02:35.9]} 9. cxb5 {[%clk 0:02:47.7]} 9... axb5 {[%clk 0:02:35.2]}
10. Bxb5+ {[%clk 0:02:46.8]} 10... Bd7 {[%clk 0:02:35]} 11. Bd3 {[%clk
0:02:42.5]} 11... O-O {[%clk 0:02:29.4]} 12. O-O {[%clk 0:02:42]} 12... c6
{[%clk 0:02:24.9]} 13. b4 {[%clk 0:02:36.4]} 13... Nb7 {[%clk 0:02:20.5]} 14.
Qd2 {[%clk 0:02:29.5]} 14... Ra3 {[%clk 0:02:14.4]} 15. Rfb1 {[%clk 0:02:10.7]}
15... Qa8 {[%clk 0:02:13.5]} 16. Nge2 {[%clk 0:02:07.9]} 16... Rb8 {[%clk
0:02:09.8]} 17. Bc4 {[%clk 0:02:05.5]} 17... Nd8 {[%clk 0:02:07.8]} 18. e5
{[%clk 0:01:59.5]} 18... Ne8 {[%clk 0:02:02.4]} 19. f4 {[%clk 0:01:58.9]} 19...
Bf5 {[%clk 0:01:47.9]} 20. Rb3 {[%clk 0:01:53]} 20... d5 {[%clk 0:01:37.4]} 21.
Rxa3 {[%clk 0:01:45.4]} 21... Qxa3 {[%clk 0:01:37.1]} 22. Bb3 {[%clk 0:01:42.9]}
22... Rxb4 {[%clk 0:01:27.2]} 23. Rf1 {[%clk 0:01:42.8]} 23... Ne6 {[%clk
0:01:13.6]} 24. h3 {[%clk 0:01:41.6]} 24... h5 {[%clk 0:01:13.8]} 25. Kh2 {[%clk
0:01:31.5]} 25... N8c7 {[%clk 0:01:09.6]} 26. Rg1 {[%clk 0:01:31.5]} 26... Qa6
{[%clk 0:00:53.1]} 27. g4 {[%clk 0:01:29.6]} 27... hxg4 {[%clk 0:00:51.9]} 28.
hxg4 {[%clk 0:01:30.5]} 28... Bd3 {[%clk 0:00:51.3]} 29. Nc1 {[%clk 0:01:24]}
29... Bc4 {[%clk 0:00:48.8]} 30. f5 {[%clk 0:01:20.2]} 30... Nf8 {[%clk
0:00:40.4]} 31. Bh6 {[%clk 0:01:15.1]} 31... Bxb3 {[%clk 0:00:38.3]} 32. Nxb3
{[%clk 0:01:14.7]} 32... Nb5 {[%clk 0:00:35.7]} 33. Bxg7 {[%clk 0:01:12.8]}
33... Kxg7 {[%clk 0:00:35.1]} 34. Nc5 {[%clk 0:01:06.4]} 34... Qa5 {[%clk
0:00:29.3]} 35. Nxb5 {[%clk 0:01:03.4]} 35... Qxb5 {[%clk 0:00:29.3]} 36. Rg2
{[%clk 0:01:00.4]} 36... Qc4 {[%clk 0:00:28.2]} 37. f6+ {[%clk 0:00:59.9]} 37...
exf6 {[%clk 0:00:27.9]} 38. exf6+ {[%clk 0:01:00.8]} 38... Kxf6 {[%clk
0:00:27.2]} 39. Qf4+ {[%clk 0:00:51.8]} 39... Kg7 {[%clk 0:00:27.3]} 40. Rf2
{[%clk 0:00:51.4]} 40... f5 {[%clk 0:00:12.7]} 41. Qe5+ {[%clk 0:00:44.7]} 41...
Kh6 {[%clk 0:00:11.8]} 42. Qh8+ {[%clk 0:00:39.6]} 42... Nh7 {[%clk 0:00:12.1]}
43. Ne6 {[%clk 0:00:38.8]} 43... Qd3 {[%clk 0:00:03.9]} 44. Qg7# {[%clk
0:00:38]} 1-0

[Event "Early-Titled-Tuesday-Blitz-February-27-2024"]
[Site "Chess.com"]
[Date "2024.02.27"]
[Round "7"]
[White "Chessmissile07"]
[Black "AttackSparrow"]
[Result "1-0"]
[WhiteElo "2888"]
[BlackElo "2645"]
[TimeControl "180+1"]
[EndTime "9:16:16 PST"]
[Termination "Chessmissile07 won by resignation"]

1. a3 {[%clk 0:03:00.9]} 1... Nf6 {[%clk 0:02:58.1]} 2. Nf3 {[%clk 0:02:59.9]}
2... b6 {[%clk 0:02:58.6]} 3. d4 {[%clk 0:02:56.2]} 3... Bb7 {[%clk 0:02:58.4]}
4. Bf4 {[%clk 0:02:56.7]} 4... g6 {[%clk 0:02:50.9]} 5. e3 {[%clk 0:02:56.6]}
5... Bg7 {[%clk 0:02:51.5]} 6. h3 {[%clk 0:02:55.1]} 6... O-O {[%clk 0:02:52]}
7. Bd3 {[%clk 0:02:53.5]} 7... d6 {[%clk 0:02:52.5]} 8. O-O {[%clk 0:02:52.9]}
8... Nbd7 {[%clk 0:02:53.2]} 9. Bh2 {[%clk 0:02:52.9]} 9... c5 {[%clk
0:02:53.3]} 10. c4 {[%clk 0:02:48.8]} 10... cxd4 {[%clk 0:02:49.8]} 11. exd4
{[%clk 0:02:48.5]} 11... d5 {[%clk 0:02:50.5]} 12. Nc3 {[%clk 0:02:43.9]} 12...
Rc8 {[%clk 0:02:49.4]} 13. cxd5 {[%clk 0:02:37.3]} 13... Nxd5 {[%clk 0:02:50.3]}
14. Rc1 {[%clk 0:02:37.3]} 14... Nxc3 {[%clk 0:02:46.2]} 15. bxc3 {[%clk
0:02:38.2]} 15... Bxf3 {[%clk 0:02:27]} 16. Qxf3 {[%clk 0:02:37.3]} 16... e5
{[%clk 0:02:27.9]} 17. Ba6 {[%clk 0:02:29]} 17... Rc7 {[%clk 0:02:09.4]} 18.
Rfe1 {[%clk 0:02:23.2]} 18... Qe7 {[%clk 0:02:01.6]} 19. c4 {[%clk 0:01:51]}
19... Qd6 {[%clk 0:01:36.2]} 20. Rcd1 {[%clk 0:01:44.4]} 20... Qc6 {[%clk
0:01:17.6]} 21. Qxc6 {[%clk 0:01:37.3]} 21... Rxc6 {[%clk 0:01:18.5]} 22. dxe5
{[%clk 0:01:30.3]} 22... Nc5 {[%clk 0:01:15.5]} 23. Bb5 {[%clk 0:01:30.8]} 23...
Rcc8 {[%clk 0:01:14.3]} 24. Bd7 {[%clk 0:01:11.8]} 24... Nxd7 {[%clk 0:00:44.6]}
25. Rxd7 {[%clk 0:01:12.7]} 25... Rxc4 {[%clk 0:00:42.8]} 26. Rxa7 {[%clk
0:01:08.3]} 26... Rfc8 {[%clk 0:00:43.4]} 27. Bg3 {[%clk 0:01:00.5]} 27... Bf8
{[%clk 0:00:36.1]} 28. e6 {[%clk 0:00:58.3]} 28... fxe6 {[%clk 0:00:32.9]} 29.
Rxe6 {[%clk 0:00:59.2]} 29... Rc3 {[%clk 0:00:33.5]} 30. a4 {[%clk 0:00:54.5]}
30... Bc5 {[%clk 0:00:27.6]} 31. Be5 {[%clk 0:00:21.9]} 31... Rc1+ {[%clk
0:00:18.1]} 32. Kh2 {[%clk 0:00:22.5]} 32... Re1 {[%clk 0:00:17.2]} 33. Rg7+
{[%clk 0:00:18.2]} 33... Kf8 {[%clk 0:00:17.4]} 34. Rxh7 {[%clk 0:00:18.4]}
34... Rxe5 {[%clk 0:00:16.5]} 35. Rxe5 {[%clk 0:00:19.3]} 35... Bd6 {[%clk
0:00:16.1]} 36. Rh8+ {[%clk 0:00:19.7]} 36... Kf7 {[%clk 0:00:15.4]} 37. Rxc8
{[%clk 0:00:20.6]} 37... Bxe5+ {[%clk 0:00:16.3]} 38. g3 {[%clk 0:00:20.9]} 1-0

[Event "Early-Titled-Tuesday-Blitz-February-27-2024"]
[Site "Chess.com"]
[Date "2024.02.27"]
[Round "7"]
[White "betta2004"]
[Black "Vaathi_Coming"]
[Result "0-1"]
[WhiteElo "2585"]
[BlackElo "2897"]
[TimeControl "180+1"]
[EndTime "9:16:16 PST"]
[Termination "Vaathi_Coming won by resignation"]

1. e4 {[%clk 0:03:00.9]} 1... e6 {[%clk 0:03:00.9]} 2. d4 {[%clk 0:02:59.6]}
2... d5 {[%clk 0:03:01.8]} 3. Bd3 {[%clk 0:02:59.8]} 3... dxe4 {[%clk 0:03:02]}
4. Bxe4 {[%clk 0:03:00.7]} 4... Nf6 {[%clk 0:03:02.8]} 5. Bf3 {[%clk 0:03:01.3]}
5... Be7 {[%clk 0:03:03.7]} 6. Ne2 {[%clk 0:03:01]} 6... O-O {[%clk 0:03:04.4]}
7. O-O {[%clk 0:03:01.9]} 7... c5 {[%clk 0:03:04.6]} 8. Nbc3 {[%clk 0:03:00.9]}
8... Qa5 {[%clk 0:03:04.3]} 9. Bf4 {[%clk 0:02:57.9]} 9... Rd8 {[%clk
0:03:03.7]} 10. Qe1 {[%clk 0:02:57.2]} 10... cxd4 {[%clk 0:02:58.3]} 11. Nd5
{[%clk 0:02:57.4]} 11... Qxe1 {[%clk 0:02:57.7]} 12. Nxe7+ {[%clk 0:02:57.7]}
12... Kf8 {[%clk 0:02:58.3]} 13. Rfxe1 {[%clk 0:02:51.8]} 13... Kxe7 {[%clk
0:02:59.1]} 14. Rad1 {[%clk 0:02:51.9]} 14... d3 {[%clk 0:02:52.9]} 15. Ng3
{[%clk 0:02:39.2]} 15... Nc6 {[%clk 0:02:46.8]} 16. Rxd3 {[%clk 0:02:09.5]}
16... Rxd3 {[%clk 0:02:44.6]} 17. cxd3 {[%clk 0:02:10.4]} 17... Nd4 {[%clk
0:02:43.7]} 18. Be4 {[%clk 0:02:01.8]} 18... Nxe4 {[%clk 0:02:25.5]} 19. Rxe4
{[%clk 0:02:02.7]} 19... Nc6 {[%clk 0:02:25.8]} 20. Rc4 {[%clk 0:01:47.6]} 20...
e5 {[%clk 0:02:21.4]} 21. Be3 {[%clk 0:01:45.3]} 21... Be6 {[%clk 0:02:21.7]}
22. Rh4 {[%clk 0:01:34.5]} 22... h6 {[%clk 0:02:14.5]} 23. Bc5+ {[%clk
0:01:32.7]} 23... Kd7 {[%clk 0:02:11.5]} 24. Ra4 {[%clk 0:01:32.9]} 24... a5
{[%clk 0:02:01.2]} 25. Bb6 {[%clk 0:01:26.7]} 25... Ra6 {[%clk 0:01:58.1]} 26.
Bc5 {[%clk 0:01:26.7]} 26... b6 {[%clk 0:01:51.7]} 27. Bf8 {[%clk 0:01:25.7]}
27... b5 {[%clk 0:01:47.7]} 28. Re4 {[%clk 0:01:24.7]} 28... g6 {[%clk
0:01:27.2]} 29. Bxh6 {[%clk 0:01:23.4]} 29... Bxa2 {[%clk 0:01:23.1]} 30. Re1
{[%clk 0:01:14.4]} 30... f5 {[%clk 0:01:18.2]} 31. Bg7 {[%clk 0:01:10.5]} 31...
a4 {[%clk 0:01:13.9]} 32. Ne2 {[%clk 0:01:04.6]} 32... b4 {[%clk 0:01:12.7]} 33.
Nc1 {[%clk 0:01:01.1]} 33... Bf7 {[%clk 0:01:09.9]} 34. Bxe5 {[%clk 0:00:44]}
34... Nxe5 {[%clk 0:01:05.7]} 35. Rxe5 {[%clk 0:00:44.9]} 35... Rc6 {[%clk
0:00:54.9]} 36. Re1 {[%clk 0:00:27.6]} 36... Rc2 {[%clk 0:00:55.3]} 37. d4
{[%clk 0:00:25.9]} 37... Bc4 {[%clk 0:00:48.7]} 38. h4 {[%clk 0:00:06.8]} 38...
Rxb2 {[%clk 0:00:47.8]} 39. Kh2 {[%clk 0:00:05]} 39... a3 {[%clk 0:00:47]} 40.
Re5 {[%clk 0:00:05.2]} 40... Rc2 {[%clk 0:00:44.9]} 41. Rc5 {[%clk 0:00:01.3]}
41... Rxc1 {[%clk 0:00:44.5]} 0-1

[Event "Early-Titled-Tuesday-Blitz-February-27-2024"]
[Site "Chess.com"]
[Date "2024.02.27"]
[Round "7"]
[White "Elsa167"]
[Black "DenLaz"]
[Result "1-0"]
[WhiteElo "2901"]
[BlackElo "3018"]
[TimeControl "180+1"]
[EndTime "9:16:22 PST"]
[Termination "Elsa167 won by resignation"]

1. d4 {[%clk 0:03:00.9]} 1... f5 {[%clk 0:02:59.3]} 2. Nc3 {[%clk 0:03:00.7]}
2... Nf6 {[%clk 0:02:59.9]} 3. Bg5 {[%clk 0:03:00.8]} 3... d5 {[%clk 0:03:00.1]}
4. Bxf6 {[%clk 0:03:01.3]} 4... exf6 {[%clk 0:03:00.5]} 5. e3 {[%clk 0:03:02.2]}
5... Be6 {[%clk 0:03:00.4]} 6. Bd3 {[%clk 0:03:02.5]} 6... Qd7 {[%clk
0:03:00.8]} 7. Nge2 {[%clk 0:02:58.5]} 7... Nc6 {[%clk 0:03:01.3]} 8. a3 {[%clk
0:02:58.6]} 8... Ne7 {[%clk 0:03:00.9]} 9. b3 {[%clk 0:02:32.2]} 9... g6 {[%clk
0:02:48.8]} 10. Na4 {[%clk 0:02:28.7]} 10... b6 {[%clk 0:02:48.8]} 11. c4 {[%clk
0:02:22.7]} 11... Bh6 {[%clk 0:02:35.7]} 12. O-O {[%clk 0:02:17.4]} 12... O-O
{[%clk 0:02:32.8]} 13. c5 {[%clk 0:01:43.2]} 13... Rad8 {[%clk 0:02:03]} 14. b4
{[%clk 0:01:36.8]} 14... Bg5 {[%clk 0:01:49.8]} 15. f4 {[%clk 0:01:32.8]} 15...
Bh6 {[%clk 0:01:49.1]} 16. Nac3 {[%clk 0:01:33.1]} 16... g5 {[%clk 0:01:33.2]}
17. a4 {[%clk 0:01:19.2]} 17... Kh8 {[%clk 0:01:30.4]} 18. a5 {[%clk 0:01:09.9]}
18... Rg8 {[%clk 0:01:30.1]} 19. axb6 {[%clk 0:01:07.5]} 19... axb6 {[%clk
0:01:29.9]} 20. Qa4 {[%clk 0:01:07]} 20... Qc8 {[%clk 0:01:08]} 21. Qa6 {[%clk
0:01:03.5]} 21... Nc6 {[%clk 0:00:46.1]} 22. Qxc8 {[%clk 0:01:02]} 22... Bxc8
{[%clk 0:00:41.5]} 23. Rfb1 {[%clk 0:00:38.5]} 23... gxf4 {[%clk 0:00:25.6]} 24.
exf4 {[%clk 0:00:38.6]} 24... Bf8 {[%clk 0:00:13.3]} 25. Na4 {[%clk 0:00:29.1]}
25... bxc5 {[%clk 0:00:09.3]} 26. Nxc5 {[%clk 0:00:24.7]} 26... Ne7 {[%clk
0:00:05.8]} 27. Ra7 {[%clk 0:00:22.9]} 27... Ng6 {[%clk 0:00:05.8]} 28. Rxc7
{[%clk 0:00:22]} 28... Bd6 {[%clk 0:00:06]} 29. Ra7 {[%clk 0:00:19.3]} 29...
Nxf4 {[%clk 0:00:06]} 30. Nxf4 {[%clk 0:00:17]} 30... Bxf4 {[%clk 0:00:06.9]}
31. Kf2 {[%clk 0:00:16.4]} 31... Bxh2 {[%clk 0:00:07.2]} 32. Rh1 {[%clk
0:00:17.1]} 32... Bg3+ {[%clk 0:00:07.6]} 33. Kf3 {[%clk 0:00:17.8]} 33... Rg4
{[%clk 0:00:02.7]} 34. Raxh7+ {[%clk 0:00:16.4]} 34... Kg8 {[%clk 0:00:03.2]}
35. Rh8+ {[%clk 0:00:17.3]} 1-0

[Event "Early-Titled-Tuesday-Blitz-February-27-2024"]
[Site "Chess.com"]
[Date "2024.02.27"]
[Round "7"]
[White "Susal_De_Silva"]
[Black "alexrustemov"]
[Result "1/2-1/2"]
[WhiteElo "2626"]
[BlackElo "2834"]
[TimeControl "180+1"]
[EndTime "9:16:22 PST"]
[Termination "Game drawn by repetition"]

1. Nf3 {[%clk 0:03:00.9]} 1... d5 {[%clk 0:02:59.7]} 2. e3 {[%clk 0:03:00.9]}
2... Nf6 {[%clk 0:02:58.2]} 3. c4 {[%clk 0:03:01.3]} 3... c6 {[%clk 0:02:58.1]}
4. Nc3 {[%clk 0:03:01.4]} 4... a6 {[%clk 0:02:57.9]} 5. b3 {[%clk 0:03:01.6]}
5... Bf5 {[%clk 0:02:57.4]} 6. Bb2 {[%clk 0:03:01.8]} 6... e6 {[%clk 0:02:57.8]}
7. d4 {[%clk 0:03:00.8]} 7... Nbd7 {[%clk 0:02:56.6]} 8. Bd3 {[%clk 0:03:01.3]}
8... Ne4 {[%clk 0:02:49.6]} 9. O-O {[%clk 0:02:58.9]} 9... Bd6 {[%clk
0:02:45.7]} 10. Ne2 {[%clk 0:02:56.1]} 10... O-O {[%clk 0:02:42.9]} 11. Ne5
{[%clk 0:02:43.8]} 11... Nef6 {[%clk 0:02:14.1]} 12. f4 {[%clk 0:01:47.7]} 12...
Bxd3 {[%clk 0:02:11.4]} 13. Qxd3 {[%clk 0:01:47.5]} 13... Ne4 {[%clk 0:02:11]}
14. Ng3 {[%clk 0:01:38.6]} 14... Ndf6 {[%clk 0:02:06.7]} 15. Nf3 {[%clk
0:01:26.8]} 15... Nxg3 {[%clk 0:01:53.9]} 16. hxg3 {[%clk 0:01:27.7]} 16... Ne4
{[%clk 0:01:54]} 17. g4 {[%clk 0:01:22]} 17... Qf6 {[%clk 0:01:50.1]} 18. Nd2
{[%clk 0:01:16.7]} 18... Nxd2 {[%clk 0:01:35.2]} 19. Qxd2 {[%clk 0:01:17.6]}
19... Qg6 {[%clk 0:01:35.2]} 20. Qe2 {[%clk 0:01:14.6]} 20... f5 {[%clk
0:01:35.2]} 21. g5 {[%clk 0:01:09.1]} 21... h6 {[%clk 0:01:35.1]} 22. gxh6
{[%clk 0:01:08.8]} 22... Qxh6 {[%clk 0:01:33.2]} 23. Rf3 {[%clk 0:01:05.2]}
23... Kf7 {[%clk 0:01:31.5]} 24. Rh3 {[%clk 0:01:05]} 24... Qf6 {[%clk
0:01:29.4]} 25. Kf2 {[%clk 0:01:01]} 25... Rh8 {[%clk 0:01:24.1]} 26. Rah1
{[%clk 0:01:01.2]} 26... Rxh3 {[%clk 0:01:19.4]} 27. Rxh3 {[%clk 0:01:02.1]}
27... Qg6 {[%clk 0:01:14.1]} 28. a4 {[%clk 0:00:50.3]} 28... Rg8 {[%clk
0:01:06.2]} 29. Bc3 {[%clk 0:00:41.2]} 29... Qf6 {[%clk 0:01:02.1]} 30. c5
{[%clk 0:00:39.8]} 30... Bc7 {[%clk 0:00:59.6]} 31. a5 {[%clk 0:00:39]} 31...
Bd8 {[%clk 0:00:53.1]} 32. Qh5+ {[%clk 0:00:37.7]} 32... Qg6 {[%clk 0:00:52.4]}
33. b4 {[%clk 0:00:34.4]} 33... Qxh5 {[%clk 0:00:51]} 34. Rxh5 {[%clk
0:00:35.3]} 34... Kg6 {[%clk 0:00:50.7]} 35. Rh3 {[%clk 0:00:33.9]} 35... Bf6
{[%clk 0:00:51]} 36. g3 {[%clk 0:00:34.1]} 36... Kf7 {[%clk 0:00:50.1]} 37. Kf3
{[%clk 0:00:34.6]} 37... g6 {[%clk 0:00:47.4]} 38. Bd2 {[%clk 0:00:34.2]} 38...
Rh8 {[%clk 0:00:47.2]} 39. Rxh8 {[%clk 0:00:33.6]} 39... Bxh8 {[%clk 0:00:48.1]}
40. Be1 {[%clk 0:00:30.8]} 40... Bf6 {[%clk 0:00:45.1]} 41. Bc3 {[%clk
0:00:28.7]} 41... g5 {[%clk 0:00:44.9]} 42. Bb2 {[%clk 0:00:28.3]} 42... Kg6
{[%clk 0:00:44.9]} 43. Bc3 {[%clk 0:00:27.8]} 43... Kh5 {[%clk 0:00:44.9]} 44.
Bb2 {[%clk 0:00:27.8]} 44... gxf4 {[%clk 0:00:40.3]} 45. exf4 {[%clk 0:00:28.7]}
45... Bg7 {[%clk 0:00:33.7]} 46. Bc3 {[%clk 0:00:28.8]} 46... Bf6 {[%clk
0:00:32.7]} 47. Bb2 {[%clk 0:00:29.3]} 47... Bg7 {[%clk 0:00:32.1]} 48. Bc3
{[%clk 0:00:29.8]} 48... Bf6 {[%clk 0:00:31.7]} 49. Bb2 {[%clk 0:00:30.4]}
1/2-1/2

[Event "Early-Titled-Tuesday-Blitz-February-27-2024"]
[Site "Chess.com"]
[Date "2024.02.27"]
[Round "7"]
[White "BeardedNM"]
[Black "GilbertoHernandezAmura"]
[Result "0-1"]
[WhiteElo "2231"]
[BlackElo "2437"]
[TimeControl "180+1"]
[EndTime "9:16:22 PST"]
[Termination "GilbertoHernandezAmura won on time"]

1. e4 {[%clk 0:02:58.2]} 1... e6 {[%clk 0:03:00.3]} 2. d4 {[%clk 0:02:58.1]}
2... d5 {[%clk 0:03:00.2]} 3. e5 {[%clk 0:02:58.5]} 3... c5 {[%clk 0:02:55.1]}
4. c3 {[%clk 0:02:58.9]} 4... Nc6 {[%clk 0:02:53]} 5. Nf3 {[%clk 0:02:59.1]}
5... Qb6 {[%clk 0:02:43.5]} 6. a3 {[%clk 0:02:54.4]} 6... c4 {[%clk 0:02:41.6]}
7. Nbd2 {[%clk 0:02:54]} 7... Bd7 {[%clk 0:02:39.7]} 8. g3 {[%clk 0:02:54.3]}
8... Nge7 {[%clk 0:02:38.4]} 9. Bg2 {[%clk 0:02:53.9]} 9... Nc8 {[%clk
0:02:38.6]} 10. O-O {[%clk 0:02:54]} 10... Qc7 {[%clk 0:02:38]} 11. Rb1 {[%clk
0:02:48.3]} 11... Na5 {[%clk 0:02:31.7]} 12. Ne1 {[%clk 0:02:15.8]} 12... Nb6
{[%clk 0:02:30.3]} 13. h4 {[%clk 0:02:07.4]} 13... Ba4 {[%clk 0:02:21.6]} 14.
Qg4 {[%clk 0:02:00.3]} 14... O-O-O {[%clk 0:02:10.7]} 15. h5 {[%clk 0:01:56.1]}
15... Kb8 {[%clk 0:02:00.3]} 16. Ndf3 {[%clk 0:01:48.6]} 16... Bd7 {[%clk
0:01:45.4]} 17. Ng5 {[%clk 0:01:41.2]} 17... Bc8 {[%clk 0:01:32.4]} 18. Qf3
{[%clk 0:01:36.6]} 18... Rd7 {[%clk 0:01:28]} 19. Bf4 {[%clk 0:01:17.6]} 19...
Nb3 {[%clk 0:01:24]} 20. Nc2 {[%clk 0:01:13.8]} 20... Ka8 {[%clk 0:01:21.9]} 21.
Qe2 {[%clk 0:00:56.2]} 21... Re7 {[%clk 0:01:16.1]} 22. Bh3 {[%clk 0:00:53.5]}
22... Qc6 {[%clk 0:01:11.5]} 23. Ne3 {[%clk 0:00:38.1]} 23... f6 {[%clk
0:00:52.7]} 24. Nf3 {[%clk 0:00:33.1]} 24... f5 {[%clk 0:00:47]} 25. Nh4 {[%clk
0:00:18.4]} 25... Re8 {[%clk 0:00:46.1]} 26. h6 {[%clk 0:00:15.7]} 26... gxh6
{[%clk 0:00:41.8]} 27. Qh5 {[%clk 0:00:15.2]} 27... Rg8 {[%clk 0:00:38.5]} 28.
Neg2 {[%clk 0:00:11.9]} 28... Bd7 {[%clk 0:00:33.4]} 29. Bxh6 {[%clk 0:00:10.4]}
29... Be7 {[%clk 0:00:23.8]} 30. Bf4 {[%clk 0:00:07.2]} 30... Rg7 {[%clk
0:00:20.7]} 31. Nf3 {[%clk 0:00:05.4]} 31... Reg8 {[%clk 0:00:18.2]} 32. Ngh4
{[%clk 0:00:02.4]} 32... Be8 {[%clk 0:00:18.1]} 33. Qh6 {[%clk 0:00:02]} 33...
Bf8 {[%clk 0:00:18.3]} 0-1

[Event "Early-Titled-Tuesday-Blitz-February-27-2024"]
[Site "Chess.com"]
[Date "2024.02.27"]
[Round "7"]
[White "Ati1517"]
[Black "dianamirza"]
[Result "1-0"]
[WhiteElo "2222"]
[BlackElo "1983"]
[TimeControl "180+1"]
[EndTime "9:16:22 PST"]
[Termination "Ati1517 won by resignation"]

1. e4 {[%clk 0:03:00.9]} 1... e5 {[%clk 0:02:45.3]} 2. Nf3 {[%clk 0:02:59.3]}
2... d6 {[%clk 0:02:43.7]} 3. d4 {[%clk 0:02:57.4]} 3... exd4 {[%clk 0:02:43.8]}
4. Nxd4 {[%clk 0:02:58.3]} 4... Nf6 {[%clk 0:02:44]} 5. Nc3 {[%clk 0:02:58.3]}
5... g6 {[%clk 0:02:44.5]} 6. Bc4 {[%clk 0:02:56.3]} 6... Bg7 {[%clk 0:02:45]}
7. O-O {[%clk 0:02:55.4]} 7... O-O {[%clk 0:02:45.1]} 8. f3 {[%clk 0:02:53.9]}
8... a6 {[%clk 0:02:45.7]} 9. Be3 {[%clk 0:02:54.3]} 9... b5 {[%clk 0:02:45.8]}
10. Be2 {[%clk 0:02:39.9]} 10... Bb7 {[%clk 0:02:36.1]} 11. a4 {[%clk 0:02:24]}
11... b4 {[%clk 0:02:32.6]} 12. Na2 {[%clk 0:02:20]} 12... a5 {[%clk 0:02:29.3]}
13. c3 {[%clk 0:02:18.9]} 13... c5 {[%clk 0:02:27.8]} 14. Nb5 {[%clk 0:02:18.7]}
14... Ne8 {[%clk 0:02:20.1]} 15. Bc4 {[%clk 0:02:07.6]} 15... Nc6 {[%clk
0:02:15.4]} 16. f4 {[%clk 0:01:55.7]} 16... Qe7 {[%clk 0:01:54.2]} 17. Qd3
{[%clk 0:01:52.5]} 17... Rd8 {[%clk 0:01:50.5]} 18. Rad1 {[%clk 0:01:49.7]}
18... Nf6 {[%clk 0:01:44.4]} 19. Nxd6 {[%clk 0:01:40.8]} 19... Ne8 {[%clk
0:00:49.6]} 20. e5 {[%clk 0:01:32]} 20... Nxe5 {[%clk 0:00:35.7]} 21. fxe5
{[%clk 0:01:29.9]} 21... Bxe5 {[%clk 0:00:36.2]} 22. Rxf7 {[%clk 0:00:50.5]}
22... Rxf7 {[%clk 0:00:23.2]} 23. Bxf7+ {[%clk 0:00:51.4]} 23... Qxf7 {[%clk
0:00:20.7]} 24. Nxf7 {[%clk 0:00:50.7]} 24... Rxd3 {[%clk 0:00:21.4]} 25. Nh6+
{[%clk 0:00:50.5]} 25... Kg7 {[%clk 0:00:20.1]} 26. Rxd3 {[%clk 0:00:49.8]}
26... Nf6 {[%clk 0:00:19.2]} 27. Bxc5 {[%clk 0:00:35]} 27... Kxh6 {[%clk
0:00:07.7]} 28. cxb4 {[%clk 0:00:35.2]} 28... axb4 {[%clk 0:00:07.1]} 29. Nxb4
{[%clk 0:00:35.5]} 29... Bxb2 {[%clk 0:00:06.2]} 30. a5 {[%clk 0:00:35.6]} 30...
Ne4 {[%clk 0:00:03.1]} 31. Be3+ {[%clk 0:00:32.9]} 31... g5 {[%clk 0:00:02.9]}
32. a6 {[%clk 0:00:32.7]} 32... Bxa6 {[%clk 0:00:01.2]} 33. Nxa6 {[%clk
0:00:31.6]} 33... Bf6 {[%clk 0:00:01.6]} 34. Nc5 {[%clk 0:00:31.3]} 34... Nxc5
{[%clk 0:00:01.6]} 35. Bxc5 {[%clk 0:00:31.7]} 35... Bg7 {[%clk 0:00:02.2]} 36.
Be3 {[%clk 0:00:32.3]} 36... Bf6 {[%clk 0:00:02.4]} 37. h4 {[%clk 0:00:33.2]}
37... Kg6 {[%clk 0:00:02.6]} 38. hxg5 {[%clk 0:00:33.6]} 38... Bxg5 {[%clk
0:00:03.3]} 39. Bxg5 {[%clk 0:00:34.2]} 39... Kxg5 {[%clk 0:00:04.2]} 40. Rg3+
{[%clk 0:00:34.4]} 40... Kh4 {[%clk 0:00:04.2]} 41. Rh3+ {[%clk 0:00:35.3]} 1-0